bitfinex/quotes_SOLUSD_20250102
["timestamp","ask_amount","ask_price","bid_price","bid_amount"]
[1735836695779,14.16764021,208.85,208.76,3.10426197]
[1735836696104,0.25098,208.83,208.76,16.89543218]
[1735836696255,14.04215021,208.83,208.82,5.0]
[1735836696459,0.25098,208.83,208.82,5.0]
[1735836696677,14.16764021,208.83,208.82,5.0]
[1735836696872,0.25098,208.83,208.82,5.0]
[1735836697185,13.79117021,208.86,208.82,5.0]
[1735836697481,0.37647,208.85,208.82,5.0]
[1735836697877,13.79117021,208.87,208.82,10.0]
[1735836698482,15.39187021,208.89,208.82,23.79117021]
[1735836698686,20.30797021,208.9,208.83,13.79117021]
[1735836698980,0.37647,208.89,208.82,23.79117021]
[1735836699763,0.37647,208.87,208.82,10.0]
[1735836699973,0.25098,208.85,208.82,10.0]
[1735836700695,0.37647,208.87,208.82,10.0]
[1735836701393,0.25098,208.85,208.82,10.0]
[1735836702777,13.91666021,208.87,208.82,10.0]
[1735836704073,14.04215021,208.86,208.82,10.0]
[1735836705103,0.25098,208.86,208.82,10.0]
[1735836706080,37.56805421,208.89,208.82,10.0]
[1735836706277,23.776884,208.89,208.83,13.79117021]
[1735836706787,13.79117021,208.92,208.84,13.79117021]
[1735836707295,0.12549,208.9,208.83,13.79117021]
[1735836707895,0.12549,208.88,208.83,14.98993309]
[1735836708194,0.12549,208.88,208.84,13.79117021]
[1735836708490,14.16764021,208.88,208.83,3.10667818]
[1735836709298,14.16764021,208.88,208.83,1.9079153]
[1735836709697,0.25098,208.86,208.82,10.0]
[1735836709880,14.04215021,208.86,208.82,10.0]
[1735836710403,0.12549,208.85,208.82,10.0]
[1735836711199,14.04215021,208.86,208.82,10.0]
[1735836711396,13.79117021,208.89,208.82,10.0]
[1735836711780,13.79117021,208.9,208.82,23.79117021]
[1735836712285,24.153354,208.89,208.83,13.79117021]
[1735836713691,0.25098,208.87,208.82,10.0]
[1735836716679,24.153354,208.89,208.82,10.0]
[1735836717502,24.153354,208.89,208.82,11.19887997]
[1735836718301,24.153354,208.89,208.82,10.0]
[1735836720303,24.153354,208.89,208.83,13.79117021]
[1735836720995,0.37647,208.89,208.83,13.79117021]
[1735836722598,14.16764021,208.89,208.82,25.30997021]
[1735836723994,14.16764021,208.89,208.82,23.79117021]
[1735836724194,0.37647,208.86,208.82,10.0]
[1735836724506,24.153354,208.86,208.82,10.0]
[1735836724894,24.027864,208.84,208.82,10.0]
[1735836725301,0.25098,208.85,208.82,10.0]
[1735836728300,13.79117021,208.87,208.82,10.0]
[1735836728482,13.79117021,208.89,208.82,10.0]
[1735836728782,0.37647,208.88,208.82,10.0]
[1735836729280,24.153354,208.88,208.82,10.0]
[1735836729479,0.25098,208.88,208.84,13.79117021]
[1735836729679,13.79117021,208.92,208.84,13.79117021]
[1735836730372,24.153354,208.89,208.85,1.19888847]
[1735836730572,0.37647,208.87,208.85,1.19888847]
[1735836730800,24.153354,208.87,208.85,1.19888847]
[1735836731193,24.153354,208.87,208.82,10.0]
[1735836731700,24.153354,208.87,208.83,1.91720784]
[1735836732007,24.153354,208.87,208.83,3.11612731]
[1735836732186,24.153354,208.87,208.84,1.91720784]
[1735836732594,24.153354,208.85,208.84,1.91720784]
[1735836732797,24.153354,208.85,208.82,10.0]
[1735836733296,24.153354,208.85,208.84,1.1989404]
[1735836733810,24.153354,208.85,208.83,1.91708703]
[1735836734012,24.153354,208.85,208.82,10.0]
[1735836734013,13.79117021,208.84,208.82,10.0]
[1735836734197,24.027864,208.83,208.82,10.0]
[1735836734598,0.25098,208.84,208.82,10.0]
[1735836735113,24.027864,208.83,208.82,10.0]
[1735836735507,13.79117021,208.85,208.82,10.0]
[1735836735710,13.79117021,208.87,208.82,10.0]
[1735836735891,24.027864,208.86,208.82,10.0]
[1735836737202,24.027864,208.86,208.83,1.91758965]
[1735836737382,24.027864,208.86,208.83,3.11656914]
[1735836737590,24.153354,208.87,208.83,3.11656914]
[1735836737790,24.153354,208.87,208.83,1.19897949]
[1735836738018,13.79117021,208.88,208.84,1.19897949]
[1735836738217,13.79117021,208.89,208.84,1.19897949]
[1735836738423,0.37647,208.88,208.84,1.19897949]
[1735836738924,0.37647,208.88,208.82,10.0]
[1735836739329,0.37647,208.88,208.83,1.91804523]
[1735836739624,0.25098,208.86,208.83,3.11697861]
[1735836740118,23.776884,208.85,208.83,1.19893338]
[1735836740298,0.25098,208.85,208.84,1.19893338]
[1735836741523,0.25098,208.85,208.84,3.11631132]
[1735836742321,13.79117021,208.89,208.84,3.11631132]
[1735836742825,23.776884,208.88,208.82,10.0]
[1735836743194,23.776884,208.88,208.83,1.19892339]
[1735836743393,23.776884,208.88,208.83,3.11627958]
[1735836743734,7.7916,208.95,208.83,3.11627958]
[1735836743735,13.79117021,208.92,208.85,13.79117021]
[1735836744018,13.79117021,208.94,208.85,13.79117021]
[1735836744197,13.79117021,208.94,208.86,1.6491]
[1735836744401,24.153354,208.93,208.86,15.44027021]
[1735836744610,37.94452421,208.93,208.86,15.44027021]
[1735836745420,24.153354,208.93,208.86,15.44027021]
[1735836745715,24.153354,208.93,208.87,3.11582277]
[1735836746414,24.153354,208.91,208.86,1.6491]
[1735836747026,24.027864,208.89,208.86,1.6491]
[1735836747405,0.25098,208.87,208.83,6.2574]
[1735836747717,13.79117021,208.86,208.82,10.0]
[1735836748221,14.04215021,208.85,208.83,3.1159411]
[1735836748644,37.94452421,208.84,208.83,3.1159411]
[1735836748822,37.94452421,208.84,208.83,1.19887915]
[1735836749031,24.153354,208.83,208.82,10.0]
[1735836749533,14.16764021,208.83,208.82,10.0]
[1735836749703,14.16764021,208.83,208.82,11.1990458]
[1735836750312,0.37647,208.83,208.82,10.0]
[1735836750602,13.79117021,208.92,208.82,23.79117021]
[1735836750806,13.79117021,208.91,208.84,13.79117021]
[1735836751009,24.153354,208.9,208.84,13.79117021]
[1735836751712,8.22,208.97,208.86,13.79117021]
[1735836751717,13.79117021,208.94,208.86,13.79117021]
[1735836752032,24.153354,208.93,208.86,15.41647021]
[1735836752326,13.79117021,208.94,208.87,1.9186397]
[1735836752538,13.79117021,208.94,208.87,3.1176855]
[1735836752821,13.91666021,208.93,208.87,3.1176855]
[1735836753000,0.12549,208.91,208.88,3.1176855]
[1735836753630,37.94452421,208.89,208.88,1.9186397]
[1735836753932,24.153354,208.88,208.82,10.0]
[1735836754438,0.37647,208.88,208.82,10.0]
[1735836754605,0.37647,208.88,208.83,3.11455423]
[1735836755327,37.94452421,208.85,208.84,1.9158034]
[1735836755698,24.153354,208.84,208.82,10.0]
[1735836755899,37.94452421,208.83,208.82,10.0]
[1735836760608,24.153354,208.82,208.71,6.2871]
[1735836760924,23.776884,208.74,208.69,1.5172]
[1735836761426,23.776884,208.74,208.7,1.91802669]
[1735836762018,0.25098,208.73,208.7,1.91802669]
[1735836762216,14.04215021,208.73,208.69,1.5172]
[1735836762528,0.25098,208.71,208.67,1.91802669]
[1735836762707,14.04215021,208.71,208.67,1.91802669]
[1735836763032,14.04215021,208.71,208.66,6.249]
[1735836763215,14.04215021,208.71,208.64,15.32367021]
[1735836763527,0.25098,208.69,208.64,1.5325]
[1735836763742,0.25098,208.69,208.65,1.90496633]
[1735836764122,0.25098,208.69,208.64,1.5325]
[1735836764425,0.25098,208.69,208.63,13.79117021]
[1735836764612,14.04215021,208.69,208.62,15.69613654]
[1735836764811,23.776884,208.68,208.62,15.69613654]
[1735836765527,0.25098,208.67,208.62,1.90496633]
[1735836765705,13.91666021,208.67,208.62,1.90496633]
[1735836765905,13.91666021,208.67,208.61,20.30537021]
[1735836766219,23.902374,208.66,208.61,6.5142]
[1735836766424,13.91666021,208.66,208.6,1.5933]
[1735836766612,0.12549,208.65,208.6,1.5933]
[1735836766812,13.79117021,208.64,208.57,13.79117021]
[1735836767428,0.12549,208.69,208.57,13.79117021]
[1735836767429,13.79117021,208.63,208.57,13.79117021]
[1735836767814,24.153354,208.62,208.56,13.79117021]
[1735836768020,14.16764021,208.62,208.55,21.98587021]
[1735836769040,14.04215021,208.6,208.53,13.79117021]
[1735836769226,23.776884,208.67,208.5,11.9899]
[1735836769227,13.79117021,208.57,208.5,13.79117021]
[1735836769424,13.79117021,208.56,208.49,15.31627021]
[1735836769635,13.91666021,208.57,208.5,13.79117021]
[1735836769833,13.79117021,208.6,208.53,13.79117021]
[1735836770041,13.79117021,208.62,208.55,13.79117021]
[1735836770219,24.153354,208.61,208.55,13.79117021]
[1735836770529,37.94452421,208.61,208.54,13.79117021]
[1735836771345,13.79117021,208.6,208.53,13.79117021]
[1735836771644,24.027864,208.59,208.53,13.79117021]
[1735836771845,13.79117021,208.61,208.54,13.79117021]
[1735836772423,13.79117021,208.63,208.56,13.79117021]
[1735836772932,37.94452421,208.62,208.55,13.79117021]
[1735836773330,13.79117021,208.61,208.54,13.79117021]
[1735836773514,13.79117021,208.63,208.56,13.79117021]
[1735836774343,13.79117021,208.64,208.56,13.79117021]
[1735836774749,24.027864,208.63,208.56,13.79117021]
[1735836775043,13.79117021,208.64,208.57,13.79117021]
[1735836775243,13.79117021,208.65,208.58,13.79117021]
[1735836775446,0.25098,208.58,208.49,1.5251]
[1735836775655,13.79117021,208.54,208.49,1.5251]
[1735836775943,13.91666021,208.56,208.49,15.31627021]
[1735836776725,23.902374,208.56,208.5,13.79117021]
[1735836777156,13.79117021,208.57,208.5,13.79117021]
[1735836777356,13.79117021,208.58,208.5,13.79117021]
[1735836778162,11.9826,208.64,208.5,13.79117021]
[1735836778163,13.79117021,208.57,208.5,13.79117021]
[1735836778455,13.79117021,208.56,208.49,15.31627021]
[1735836778748,13.79117021,208.57,208.5,13.79117021]
[1735836779249,13.79117021,208.58,208.51,13.79117021]
[1735836779731,0.25098,208.58,208.52,13.79117021]
[1735836779932,13.79117021,208.6,208.53,13.79117021]
[1735836780130,13.79117021,208.62,208.54,13.79117021]
[1735836780334,13.79117021,208.62,208.55,13.79117021]
[1735836780765,13.79117021,208.58,208.51,13.79117021]
[1735836781251,13.79117021,208.56,208.49,15.31627021]
[1735836781450,13.79117021,208.55,208.49,1.5251]
[1735836782223,13.79117021,208.54,208.49,1.5251]
[1735836782749,13.79117021,208.53,208.49,1.5251]
[1735836783256,13.79117021,208.55,208.49,1.5251]
[1735836784338,24.153354,208.59,208.49,1.5251]
[1735836784339,13.79117021,208.54,208.49,1.5251]
[1735836785355,13.79117021,208.53,208.49,1.5251]
[1735836785646,13.79117021,208.5,208.44,1.6293]
[1735836785831,13.79117021,208.48,208.41,13.79117021]
[1735836786240,13.79117021,208.47,208.4,13.79117021]
[1735836786847,5.0,208.57,208.39,13.6258]
[1735836786848,13.79117021,208.46,208.39,15.42047021]
[1735836787367,24.153354,208.45,208.39,15.42047021]
[1735836787555,13.79117021,208.44,208.39,1.6293]
[1735836788330,37.94452421,208.43,208.39,1.6293]
[1735836788529,13.79117021,208.42,208.39,1.6293]
[1735836791743,13.79117021,208.42,208.35,13.79117021]
[1735836791950,13.79117021,208.43,208.36,13.79117021]
[1735836792457,23.776884,208.48,208.32,12.72045738]
[1735836792458,13.79117021,208.41,208.32,12.72045738]
[1735836792640,13.79117021,208.43,208.36,13.79117021]
[1735836793141,0.37647,208.42,208.36,13.79117021]
[1735836793343,0.37647,208.42,208.35,13.79117021]
[1735836793344,0.37647,208.4,208.35,13.79117021]
[1735836793557,0.37647,208.4,208.35,12.79117021]
[1735836794155,0.37647,208.4,208.34,13.79117021]
[1735836794362,13.79117021,208.39,208.32,13.79117021]
[1735836794564,13.79117021,208.37,208.3,15.29307021]
[1735836794860,24.153354,208.36,208.3,15.29307021]
[1735836795034,24.153354,208.36,208.3,1.5019]
[1735836795035,37.94452421,208.36,208.3,1.5019]
[1735836796464,37.94452421,208.34,208.27,13.79117021]
[1735836796633,37.94452421,208.34,208.26,13.79117021]
[1735836796634,24.153354,208.32,208.26,13.79117021]
[1735836796833,14.16764021,208.32,208.25,15.40987021]
[1735836797031,14.16764021,208.32,208.25,1.6187]
[1735836797251,14.16764021,208.32,208.25,15.40987021]
[1735836797559,37.94452421,208.32,208.25,15.40987021]
[1735836798270,16.9967,208.39,208.25,1.6187]
[1735836798271,24.153354,208.3,208.25,1.6187]
[1735836798635,24.153354,208.3,208.24,13.79117021]
[1735836798842,14.16764021,208.3,208.23,13.79117021]
[1735836799259,0.37647,208.3,208.24,13.79117021]
[1735836799565,13.79117021,208.34,208.27,13.79117021]
[1735836799864,13.79117021,208.32,208.25,13.79117021]
[1735836800237,24.153354,208.32,208.26,13.79117021]
[1735836800976,14.16764021,208.32,208.25,13.79117021]
[1735836801431,24.153354,208.32,208.26,13.79117021]
[1735836801638,13.79117021,208.35,208.28,13.79117021]
[1735836802064,13.79117021,208.34,208.28,13.79117021]
[1735836802249,13.79117021,208.35,208.28,13.79117021]
[1735836803072,24.153354,208.34,208.27,13.79117021]
[1735836803864,24.153354,208.34,208.28,13.79117021]
[1735836804073,0.37647,208.34,208.29,13.79117021]
[1735836804246,14.16764021,208.34,208.28,13.79117021]
[1735836804568,13.79117021,208.35,208.28,13.79117021]
[1735836804736,14.16764021,208.34,208.28,13.79117021]
[1735836804934,14.16764021,208.34,208.27,13.79117021]
[1735836805862,14.16764021,208.34,208.26,1.88437589]
[1735836805863,0.37647,208.34,208.28,13.79117021]
[1735836806073,9.41628392,208.41,208.31,13.79117021]
[1735836806243,13.79117021,208.38,208.31,13.79117021]
[1735836806444,13.79117021,208.4,208.33,13.79117021]
[1735836806944,13.79117021,208.38,208.3,1.5219]
[1735836807146,13.79117021,208.38,208.31,13.79117021]
[1735836807362,13.79117021,208.37,208.3,15.31307021]
[1735836807554,13.79117021,208.38,208.31,13.79117021]
[1735836808072,13.79117021,208.37,208.3,15.31307021]
[1735836808442,13.79117021,208.38,208.31,13.79117021]
[1735836809075,13.79117021,208.35,208.3,1.5219]
[1735836809372,13.79117021,208.33,208.29,1.88437589]
[1735836809753,13.79117021,208.32,208.26,1.88437589]
[1735836810357,13.79117021,208.33,208.26,13.79117021]
[1735836810566,13.79117021,208.32,208.25,15.39707021]
[1735836811675,13.79117021,208.31,208.25,3.49027589]
[1735836811980,13.79117021,208.32,208.25,17.2814461]
[1735836812178,13.79117021,208.3,208.25,3.49027589]
[1735836812349,13.79117021,208.3,208.25,1.88437589]
[1735836812548,13.79117021,208.29,208.25,1.88437589]
[1735836812857,13.79117021,208.31,208.24,15.6755461]
[1735836813044,13.79117021,208.33,208.26,13.79117021]
[1735836813475,13.79117021,208.32,208.25,13.79117021]
[1735836816570,13.79117021,208.32,208.24,1.88437589]
[1735836816571,13.79117021,208.31,208.24,15.6755461]
[1735836816948,13.79117021,208.32,208.25,13.79117021]
[1735836817443,0.37647,208.34,208.24,15.6755461]
[1735836817444,13.79117021,208.31,208.24,15.6755461]
[1735836817639,13.79117021,208.32,208.25,13.79117021]
[1735836817843,24.153354,208.32,208.25,13.79117021]
[1735836818272,14.16764021,208.32,208.25,13.79117021]
[1735836818690,14.16764021,208.32,208.25,11.36917021]
[1735836820393,24.153354,208.32,208.25,11.36917021]
[1735836820586,13.79117021,208.33,208.25,11.36917021]
[1735836820795,13.79117021,208.35,208.28,13.79117021]
[1735836820976,13.79117021,208.36,208.29,13.79117021]
[1735836821293,8.1906,208.4,208.28,13.79117021]
[1735836821294,37.94452421,208.35,208.28,13.79117021]
[1735836822297,13.79117021,208.36,208.29,13.79117021]
[1735836822594,13.79117021,208.37,208.3,13.79117021]
[1735836823180,37.94452421,208.36,208.29,1.5294]
[1735836823391,13.79117021,208.34,208.29,1.5294]
[1735836823771,13.79117021,208.35,208.29,1.5294]
[1735836824062,14.16764021,208.36,208.29,15.32057021]
[1735836824561,0.37647,208.36,208.29,15.32057021]
[1735836824768,13.79117021,208.37,208.29,15.32057021]
[1735836824972,13.79117021,208.37,208.3,13.79117021]
[1735836825374,13.79117021,208.38,208.3,13.79117021]
[1735836826092,13.79117021,208.37,208.3,13.79117021]
[1735836827202,13.79117021,208.37,208.29,17.2049461]
[1735836828897,13.79117021,208.37,208.3,1.88437589]
[1735836829106,13.79117021,208.37,208.3,15.6755461]
[1735836829402,13.79117021,208.37,208.31,1.88437589]
[1735836829997,13.79117021,208.36,208.31,1.88437589]
[1735836830198,13.79117021,208.36,208.3,1.88437589]
[1735836830874,13.79117021,208.36,208.31,1.88437589]
[1735836831573,13.79117021,208.36,208.32,1.88437589]
[1735836832490,8.86071057,208.36,208.29,10.39011057]
[1735836833202,8.86071057,208.36,208.29,1.5294]
[1735836833579,8.86071057,208.36,208.3,1.91093105]
[1735836833878,8.86071057,208.34,208.3,1.91093105]
[1735836834393,8.86071057,208.34,208.31,1.91093105]
[1735836834593,8.86071057,208.35,208.31,1.91093105]
[1735836835087,8.86071057,208.35,208.29,1.5294]
[1735836835405,8.86071057,208.35,208.3,1.91239776]
[1735836835906,8.86071057,208.35,208.29,1.5294]
[1735836837105,8.86071057,208.36,208.29,1.5294]
[1735836837601,8.86071057,208.36,208.3,1.91303932]
[1735836838087,8.86071057,208.36,208.31,1.91303932]
[1735836838779,8.86071057,208.36,208.32,1.91303932]
[1735836839403,8.86071057,208.35,208.29,1.5294]
[1735836839681,24.153354,208.34,208.29,1.5294]
[1735836839884,8.86071057,208.31,208.3,1.91565792]
[1735836840403,33.01406457,208.31,208.3,1.91565792]
[1735836840697,24.153354,208.3,208.24,1.6153]
[1735836840873,8.86071057,208.29,208.24,1.6153]
[1735836841481,8.86071057,208.29,208.25,1.91723949]
[1735836842005,8.86071057,208.29,208.26,1.91723949]
[1735836842308,8.86071057,208.28,208.26,1.91723949]
[1735836842604,8.86071057,208.29,208.26,1.91723949]
[1735836842996,9.23718057,208.3,208.24,1.6153]
[1735836843398,9.23718057,208.3,208.25,1.89367806]
[1735836844110,9.23718057,208.3,208.24,1.6153]
[1735836844111,8.86071057,208.29,208.26,1.89367806]
[1735836844674,9.23718057,208.3,208.26,1.89367806]
[1735836844881,9.23718057,208.3,208.27,1.89367806]
[1735836845608,9.23718057,208.3,208.24,1.6153]
[1735836846183,9.23718057,208.3,208.25,1.89320632]
[1735836846690,9.23718057,208.3,208.26,1.89320632]
[1735836847104,9.23718057,208.3,208.27,1.89320632]
[1735836847616,9.23718057,208.28,208.27,1.89320632]
[1735836847787,9.23718057,208.28,208.19,8.86071057]
[1735836847988,8.86071057,208.27,208.19,8.86071057]
[1735836848397,8.86071057,208.27,208.2,1.8940874]
[1735836848398,24.153354,208.26,208.2,1.8940874]
[1735836848721,33.01406457,208.26,208.2,1.8940874]
[1735836849109,33.01406457,208.26,208.21,1.8940874]
[1735836849282,33.01406457,208.26,208.21,1.3940874]
[1735836849714,33.01406457,208.26,208.19,8.86071057]
[1735836849922,33.01406457,208.26,208.18,8.2338]
[1735836849923,8.86071057,208.25,208.18,17.09451057]
[1735836850104,8.86071057,208.23,208.18,1.6496]
[1735836850417,8.86071057,208.22,208.18,1.6496]
[1735836850912,8.86071057,208.21,208.18,1.6496]
[1735836851614,24.153354,208.2,208.13,15.14483287]
[1735836851797,8.86071057,208.19,208.13,15.14483287]
[1735836851995,8.86071057,208.19,208.13,7.8795]
[1735836854518,8.86071057,208.18,208.13,7.8795]
[1735836855013,8.86071057,208.17,208.13,1.5108]
[1735836855328,33.01406457,208.16,208.13,1.5108]
[1735836856719,33.01406457,208.16,208.08,18.5655]
[1735836856720,8.86071057,208.14,208.08,6.5513]
[1735836857021,8.86071057,208.09,208.07,1.5466]
[1735836857517,8.86071057,208.08,208.03,6.6643]
[1735836857892,12.0105,208.15,208.03,6.6643]
[1735836857893,8.86071057,208.07,208.03,6.6643]
[1735836858093,8.86071057,208.07,208.03,5.6643]
[1735836858898,8.86071057,208.08,208.03,5.6643]
[1735836859617,8.86071057,208.07,208.03,5.6643]
[1735836859813,8.86071057,208.07,208.02,1.5466]
[1735836860118,8.86071057,208.09,208.02,10.40731057]
[1735836860326,8.86071057,208.07,208.02,1.5466]
[1735836860622,13.8815489,208.08,208.02,15.4281489]
[1735836861027,20.0,208.12,208.02,1.5466]
[1735836861028,13.8815489,208.07,208.02,1.5466]
[1735836861497,13.8815489,208.06,208.02,1.5466]
[1735836862126,13.8815489,208.05,208.02,1.5466]
[1735836862419,13.8815489,208.06,208.02,1.5466]
[1735836863691,24.153354,208.02,207.97,0.72103385]
[1735836863890,24.153354,207.97,207.89,1.5033]
[1735836864102,13.8815489,207.91,207.89,1.5033]
[1735836864318,13.8815489,207.9,207.84,32.22433074]
[1735836864601,13.8815489,207.9,207.84,31.5033]
[1735836864801,13.8815489,207.89,207.84,1.5033]
[1735836865002,14.2580189,207.88,207.84,1.5033]
[1735836865304,13.8815489,207.89,207.83,13.8815489]
[1735836865510,13.8815489,207.9,207.83,13.8815489]
[1735836865935,12.99094856,207.99,207.85,13.8815489]
[1735836865936,6.0641,207.99,207.85,13.8815489]
[1735836866105,13.8815489,207.94,207.87,13.8815489]
[1735836866298,13.8815489,207.91,207.84,13.8815489]
[1735836866513,13.8815489,207.92,207.85,13.8815489]
[1735836867729,24.153354,207.9,207.84,20.0]
[1735836867921,14.2580189,207.9,207.84,20.0]
[1735836868129,13.8815489,207.89,207.84,20.0]
[1735836868333,0.37647,207.9,207.78,32.35131264]
[1735836868334,13.8815489,207.88,207.8,13.8815489]
[1735836868628,13.8815489,207.87,207.8,13.8815489]
[1735836869140,13.8815489,207.86,207.79,13.8815489]
[1735836869425,13.8815489,207.86,207.78,16.23286154]
[1735836869598,13.8815489,207.86,207.78,1.6298]
[1735836869936,13.8815489,207.86,207.78,15.5113489]
[1735836870226,0.37647,207.85,207.78,1.6298]
[1735836870436,14.2580189,207.9,207.78,1.6298]
[1735836870437,13.8815489,207.84,207.78,1.6298]
[1735836871731,0.37647,207.84,207.78,15.5113489]
[1735836871934,13.8815489,207.86,207.78,15.5113489]
[1735836872121,13.8815489,207.89,207.82,13.8815489]
[1735836872333,13.8815489,207.9,207.83,13.8815489]
[1735836872711,0.25098,207.89,207.82,13.8815489]
[1735836873203,24.153354,207.89,207.82,13.8815489]
[1735836873906,13.8815489,207.88,207.81,13.8815489]
[1735836874107,13.8815489,207.86,207.79,13.8815489]
[1735836874438,13.8815489,207.87,207.8,33.8815489]
[1735836874605,13.8815489,207.88,207.81,13.8815489]
[1735836875036,13.8815489,207.9,207.83,13.8815489]
[1735836875934,13.8815489,207.88,207.82,13.8815489]
[1735836876133,13.8815489,207.93,207.86,13.8815489]
[1735836876704,6.0641,207.99,207.87,0.72150267]
[1735836876911,13.8815489,207.99,207.88,1.6585]
[1735836877127,13.8815489,207.99,207.92,13.8815489]
[1735836877534,13.8815489,207.98,207.91,13.8815489]
[1735836877921,13.8815489,207.98,207.92,13.8815489]
[1735836877922,24.153354,207.98,207.92,13.8815489]
[1735836878927,14.2580189,207.98,207.91,13.8815489]
[1735836879137,13.8815489,207.95,207.88,1.6585]
[1735836879307,13.8815489,207.98,207.91,13.8815489]
[1735836879513,13.8815489,207.98,207.88,1.6585]
[1735836879514,13.8815489,208.0,207.92,13.8815489]
[1735836880044,13.8815489,208.0,207.93,13.8815489]
[1735836880251,13.8815489,208.04,207.96,13.8815489]
[1735836880454,13.8815489,208.06,207.98,13.8815489]
[1735836880738,13.8815489,208.06,207.94,0.72121295]
[1735836880739,13.8815489,208.07,208.0,13.8815489]
[1735836881037,6.2326,208.09,207.99,13.8815489]
[1735836881038,13.8815489,208.06,207.99,13.8815489]
[1735836881212,13.8815489,208.07,208.0,13.8815489]
[1735836881532,14.2580189,208.08,208.01,13.8815489]
[1735836881737,0.37647,208.08,208.02,13.8815489]
[1735836881923,13.8815489,208.09,208.02,13.8815489]
[1735836882326,13.8815489,208.1,208.03,13.8815489]
[1735836882640,6.353,208.14,208.05,13.8815489]
[1735836882940,13.8815489,208.14,208.07,13.8815489]
[1735836883439,13.8815489,208.15,208.08,13.8815489]
[1735836883631,13.8815489,208.16,208.09,13.8815489]
[1735836884647,13.8815489,208.15,208.08,13.8815489]
[1735836885854,0.37647,208.15,208.09,13.8815489]
[1735836886516,13.8815489,208.14,208.07,13.8815489]
[1735836886715,13.3815489,208.14,208.07,13.8815489]
[1735836887241,14.2580189,208.15,208.07,13.8815489]
[1735836887536,14.2580189,208.15,208.08,13.8815489]
[1735836887740,0.37647,208.15,208.1,13.8815489]
[1735836887915,0.37647,208.15,208.11,13.8815489]
[1735836888117,0.37647,208.15,208.1,13.8815489]
[1735836888416,0.37647,208.15,208.09,13.8815489]
[1735836889241,13.8815489,208.16,208.09,13.8815489]
[1735836889541,23.776884,208.17,208.11,13.8815489]
[1735836889841,18.1498,208.24,208.14,13.8815489]
[1735836890046,13.8815489,208.21,208.14,13.8815489]
[1735836890423,13.8815489,208.2,208.13,13.8815489]
[1735836890742,0.12549,208.19,208.14,13.8815489]
[1735836890924,0.12549,208.19,208.13,13.8815489]
[1735836891111,37.4094129,208.2,208.13,13.8815489]
[1735836891318,0.12549,208.2,208.14,13.8815489]
[1735836891717,33.8815489,208.21,208.14,13.8815489]
[1735836893044,24.027864,208.2,208.14,13.8815489]
[1735836893813,23.776884,208.2,208.15,13.8815489]
[1735836894016,23.776884,208.18,208.12,13.8815489]
[1735836894220,0.25098,208.17,208.11,13.8815489]
[1735836894444,0.25098,208.17,208.09,1.6021]
[1735836894445,13.8815489,208.16,208.09,1.6021]
[1735836894620,23.776884,208.15,208.09,15.4836489]
[1735836894928,23.776884,208.16,208.1,13.8815489]
[1735836895523,0.25098,208.17,208.12,13.8815489]
[1735836896244,0.25098,208.17,208.11,13.8815489]
[1735836896928,23.776884,208.16,208.1,13.8815489]
[1735836897333,13.8815489,208.16,208.09,15.4836489]
[1735836897653,23.776884,208.16,208.1,13.8815489]
[1735836898947,24.027864,208.17,208.1,13.8815489]
[1735836899461,24.027864,208.17,208.09,1.6021]
[1735836899462,0.25098,208.14,208.09,1.6021]
[1735836899630,0.25098,208.14,208.08,13.8815489]
[1735836899961,0.25098,208.12,208.07,13.8815489]
[1735836900250,0.25098,208.12,208.06,13.8815489]
[1735836900560,24.153354,208.11,208.05,13.8815489]
[1735836900749,14.2580189,208.11,208.03,15.4926489]
[1735836901258,24.027864,208.09,208.03,15.4926489]
[1735836901441,24.027864,208.09,208.03,13.8815489]
[1735836901638,0.12549,208.09,208.03,13.8815489]
[1735836902530,0.25098,208.08,208.02,13.8815489]
[1735836902727,14.0070389,208.07,208.0,13.8815489]
[1735836902928,24.027864,208.06,208.0,13.8815489]
[1735836903137,37.9094129,208.06,207.99,13.8815489]
[1735836903353,24.027864,208.06,208.0,13.8815489]
[1735836903549,24.027864,208.06,207.99,13.8815489]
[1735836903749,24.027864,208.06,207.98,13.8815489]
[1735836903750,24.027864,208.04,207.98,13.8815489]
[1735836903959,24.027864,208.04,207.93,2.36806657]
[1735836903960,24.027864,208.02,207.96,13.8815489]
[1735836904451,0.25098,208.02,207.97,13.8815489]
[1735836905243,13.8815489,208.04,207.97,13.8815489]
[1735836905754,24.027864,208.02,207.96,13.8815489]
[1735836905937,24.027864,208.02,207.95,13.8815489]
[1735836906276,24.027864,208.0,207.93,15.5285489]